fUSD/lending_fUSD_20241220
["ID","MTS","AMOUNT","RATE_DAILY","PERIOD"]
[346115685,1734712243791,-1008.01,0.00021572,2]
[346115686,1734712243801,-989.84,0.00021572,2]
[346115687,1734712243811,-150.0,0.000216,4]
[346115688,1734712243823,-450.0,0.00021665,2]
[346115689,1734712243833,-1017.64,0.00021792,2]
[346115690,1734712243843,-982.57,0.00021792,2]
[346115691,1734712243852,-300.0,0.00021808,2]
[346115692,1734712243862,-1014.09,0.00021808,2]
[346115693,1734712243872,-982.19,0.00021808,2]
[346115694,1734712243882,-994.63,0.00021808,2]
[346115695,1734712243892,-1004.2,0.00021808,2]
[346115697,1734712243901,-1003.11,0.00021808,2]
[346115699,1734712243911,-990.61,0.00021808,2]
[346115701,1734712243920,-1016.06,0.00021808,2]
[346115703,1734712243930,-995.6,0.00021808,2]
[346115705,1734712243939,-982.81,0.00021808,2]
[346115707,1734712243948,-992.62,0.00021808,2]
[346115709,1734712243957,-1016.82,0.00021808,2]
[346115710,1734712243966,-982.97,0.00021808,2]
[346115712,1734712243975,-994.43,0.00021808,2]
[346115713,1734712243984,-1015.45,0.00021808,2]
[346115714,1734712243994,-989.41,0.00021808,2]
[346115715,1734712244003,-1000.98,0.00021808,2]
[346115716,1734712244013,-14.9162003,0.00021808,2]
[346115719,1734712244025,-968.8837997,0.00021808,2]
[346115720,1734712244034,-1016.47,0.00021808,2]
[346115722,1734712244043,-1017.1,0.00021808,2]
[346115724,1734712244052,-989.01,0.00021808,2]
[346115726,1734712244061,-1000.0,0.00021825,2]
[346115728,1734712244073,-10221.42172893,0.0002188,2]
[346115730,1734712244082,-1017.92,0.00021892,2]
[346115732,1734712244091,-980.29,0.00021892,2]
[346115734,1734712244100,-1010.68,0.00021892,2]
[346115736,1734712244110,-1019.21,0.00021892,2]
[346115738,1734712244119,-500.0,0.00021917,4]
[346115740,1734712244128,-500.0,0.00021917,4]
[346115742,1734712244138,-500.0,0.00021917,4]
[346115744,1734712244148,-500.0,0.00021917,4]
[346115746,1734712244157,-110.48906245,0.00021917,4]
[346115749,1734712244168,-402.54093755,0.00021917,4]
[346115750,1734712244178,-124.31906245,0.00021917,4]
[346115753,1734712244189,-375.68093755,0.00021917,4]
[346115755,1734712244200,-171.44606245,0.00021917,4]
[346115757,1734712244211,-188.72052506,0.00021917,4]
[346115759,1734712244220,-418.05947494,0.00021917,4]
[346115761,1734712244231,-122.31052506,0.00021917,4]
[346115763,1734712244241,-855.23185139,0.00021917,4]
[346115766,1734712244255,-1109.78814861,0.00021917,4]
[346115768,1734712244264,-500.0,0.00021917,4]
[346115770,1734712244274,-500.0,0.00021917,4]
[346115772,1734712244283,-500.0,0.00021917,4]
[346115774,1734712244292,-500.0,0.00021917,4]
[346115776,1734712244302,-500.0,0.00021917,4]
[346115778,1734712244312,-500.0,0.00021917,4]
[346115779,1734712244324,-500.0,0.00021917,4]
[346115780,1734712244333,-500.0,0.00021917,4]
[346115781,1734712244343,-156.91373,0.00021917,4]
[346115782,1734712244352,-500.0,0.00021917,4]
[346115783,1734712244362,-500.0,0.00021917,4]
[346115784,1734712244372,-500.0,0.00021917,4]
[346115785,1734712244381,-500.0,0.00021917,4]
[346115786,1734712244391,-154.608058,0.00021917,4]
[346115787,1734712244401,-500.0,0.00021917,4]
[346115788,1734712244411,-995.25,0.00021964,2]
[346115789,1734712244420,-215.0,0.00022,2]
[346115790,1734712244430,-2818.84884256,0.00022,2]
[346115799,1734712244537,-513.3099998,0.00022,2]
[346115801,1734712244548,-3776.89188303,0.00022,2]
[346115814,1734712246451,-1003.92,0.00021,2]
[346115815,1734712246460,-2890.94927461,0.00022,2]
[346115816,1734712246470,-1007.39,0.00022006,2]
[346115817,1734712246480,-981.31,0.00022006,2]
[346115818,1734712246493,-1002.12,0.00022006,2]
[346115819,1734712246502,-1009.04,0.00022006,2]
[346115820,1734712246512,-1018.4,0.00022006,2]
[346115821,1734712246521,-500.0,0.0002216,2]
[346115822,1734712246532,-500.0,0.00022191,4]
[346115823,1734712246542,-500.0,0.00022191,4]
[346115824,1734712246551,-500.0,0.00022191,4]
[346115825,1734712246562,-500.0,0.00022191,4]
[346115826,1734712246574,-513.03,0.00022191,4]
[346115827,1734712246584,-500.0,0.00022191,4]
[346115828,1734712246593,-540.37,0.00022191,4]
[346115829,1734712246603,-1965.02,0.00022191,4]
[346115830,1734712246613,-500.0,0.00022191,4]
[346115831,1734712246624,-500.0,0.00022191,4]
[346115832,1734712246634,-500.0,0.00022191,4]
[346115833,1734712246643,-500.0,0.00022191,4]
[346115834,1734712246654,-500.0,0.00022191,4]
[346115835,1734712246663,-500.0,0.00022191,4]
[346115836,1734712246677,-500.0,0.00022191,4]
[346115837,1734712246687,-500.0,0.00022191,4]
[346115838,1734712246698,-500.0,0.00022191,4]
[346115839,1734712246708,-500.0,0.00022191,4]
[346115840,1734712246719,-500.0,0.00022191,4]
[346115841,1734712246732,-154.608058,0.00022191,4]
[346115842,1734712246742,-500.0,0.00022191,4]
[346115843,1734712246751,-215.0,0.00022192,2]
[346115844,1734712246761,-1701.81444852,0.00022343,2]
[346115845,1734712246770,-1701.81444852,0.00022359,2]
[346115846,1734712246780,-1701.81444852,0.00022359,2]
[346115847,1734712246790,-1701.81444852,0.00022366,2]
[346115848,1734712246799,-1701.81444852,0.00022376,2]
[346115849,1734712246809,-1701.81444852,0.00022396,2]
[346115850,1734712246821,-500.0,0.00022465,4]
[346115851,1734712246831,-500.0,0.00022465,4]
[346115852,1734712246840,-500.0,0.00022465,4]
[346115853,1734712246849,-500.0,0.00022465,4]
[346115855,1734712246859,-513.03,0.00022465,4]
[346115857,1734712246868,-500.0,0.00022465,4]
[346115859,1734712246878,-540.37,0.00022465,4]
[346115861,1734712246887,-1965.02,0.00022465,4]
[346115863,1734712246896,-500.0,0.00022465,4]
[346115865,1734712246905,-500.0,0.00022465,4]
[346115867,1734712246914,-500.0,0.00022465,4]
[346115868,1734712246923,-500.0,0.00022465,4]
[346115870,1734712246933,-500.0,0.00022465,4]
[346115872,1734712246942,-500.0,0.00022465,4]
[346115874,1734712246952,-500.0,0.00022465,4]
[346115876,1734712246961,-500.0,0.00022465,4]
[346115879,1734712246971,-156.91373,0.00022465,4]
[346115882,1734712246981,-500.0,0.00022465,4]
[346115884,1734712246990,-500.0,0.00022465,4]
[346115886,1734712246999,-154.608058,0.00022465,4]
[346115888,1734712247009,-500.0,0.00022465,4]
[346115889,1734712247020,-485.26,0.000225,2]
[346115890,1734712247030,-65.53788707,0.000225,2]
[346115892,1734712247047,-434.46211293,0.000225,2]
[346115893,1734712247056,-500.0,0.000225,2]
[346115894,1734712247066,-500.0,0.000225,2]
[346115895,1734712247079,-500.0,0.000225,2]
[346115896,1734712247089,-300.0,0.00022534,3]
[346115897,1734712247098,-30277.21289172,0.00022536,2]
[346115898,1734712247202,-243.19485857,0.00020344,2]
[346115899,1734712247212,-901.2025838,0.00022536,2]
[346115900,1734712247223,-3624.24643802,0.00022536,2]
[346115901,1734712247238,-16584.83640185,0.00022536,2]
[346115903,1734712610790,154.09,0.00010137,2]
[346115914,1734713192859,477.29,0.000225,30]
[346115936,1734713431687,-437.0,0.00012999,2]
[346115937,1734713431696,-450.0,0.00013,2]
[346115938,1734713431706,-500.0,0.00015,2]
[346115939,1734713431715,-154.09,0.00016813,2]
[346115940,1734713431725,-550.0,0.00017,2]
[346115941,1734713431736,-500.0,0.00018411,2]
[346115942,1734713431746,-230.83430489,0.00018477,2]
[346115943,1734713431854,-514.96569511,0.00018477,2]
[346115944,1734713431864,-150.0,0.00018795,2]
[346115945,1734713431875,-300.0,0.00018808,2]
[346115946,1734713431885,-12085.45737378,0.00018809,2]
[346115947,1734713431895,-500.66,0.00018809,2]
[346115948,1734713431905,-600.0,0.00019,2]
[346115949,1734713431915,-1263.0,0.00019234,2]
[346115950,1734713431925,-150.0,0.00019234,2]
[346115951,1734713431934,-632.0,0.00019234,2]
[346115952,1734713431945,-564.0,0.00019234,2]
[346115953,1734713431955,-1897.0,0.00019234,2]
[346115954,1734713431965,-1255.0,0.00019234,2]
[346115955,1734713431974,-3767.0,0.00019234,2]
[346115956,1734713431986,-919.0,0.00019234,2]
[346115957,1734713431995,-817.0,0.00019234,2]
[346115958,1734713432006,-535.0,0.00019234,2]
[346115959,1734713432016,-2084.852,0.00019234,2]
[346115960,1734713432026,-20000.0,0.0002,2]
[346115961,1734713432036,-250.0,0.0002011,2]
[346115962,1734713432046,-420.0,0.00020505,2]
[346115963,1734713432259,-250.0,0.00020525,2]
[346115964,1734713432269,-168.75,0.0002054,2]
[346115965,1734713432278,-250.0,0.0002054,2]
[346115966,1734713432288,-225.0,0.00020547,2]
[346115967,1734713432297,-805.67,0.00020564,2]
[346115968,1734713432307,-801.49,0.00020643,2]
[346115969,1734713432317,-163.44,0.00020731,2]
[346115971,1734713432326,-745.8,0.00020741,2]
[346115973,1734713432336,-1726.81171458,0.000208,3]
[346115974,1734713432347,-592.83406066,0.000208,3]
[346115975,1734713432362,-1398.35422476,0.000208,3]
[346115976,1734713432371,-22112.36,0.00020951,2]
[346115977,1734713432380,-29999.99,0.00020951,2]
[346115978,1734713432390,-1000.0,0.00020952,2]
[346115979,1734713432399,-650.0,0.00021,2]
[346115980,1734713432408,-500.0,0.00021064,2]
[346115981,1734713432417,-500.0,0.00021064,2]
[346115982,1734713432426,-150.0,0.000216,4]
[346115983,1734713432435,-150.0,0.000216,4]
[346115984,1734713432444,-150.0,0.000216,4]
[346115985,1734713432454,-150.08749137,0.000216,4]
[346115986,1734713432463,-150.0,0.000216,4]
[346115987,1734713432472,-150.0,0.000216,4]
[346115988,1734713432483,-150.08980899,0.000216,4]
[346115989,1734713432492,-150.0,0.000216,4]
[346115990,1734713432501,-150.0,0.000216,4]
[346115991,1734713432511,-150.08745757,0.000216,4]
[346115992,1734713432520,-150.08770057,0.000216,4]
[346115993,1734713432529,-150.0873743,0.000216,4]
[346115994,1734713432539,-150.0,0.000216,4]
[346115995,1734713432548,-300.0,0.00021808,2]
[346115996,1734713432557,-168.75,0.00021909,2]
[346115997,1734713432567,-500.0,0.00021917,4]
[346115998,1734713432576,-198.99256823,0.00021917,4]
[346115999,1734713432585,-493.04179927,0.00021917,4]
[346116000,1734713432594,-444.77649123,0.00021917,4]
[346116001,1734713432603,-500.0,0.00021917,4]
[346116002,1734713432612,-500.0,0.00021917,2]
[346116003,1734713432622,-500.0,0.00021917,4]
[346116004,1734713432631,-500.0,0.00021917,2]
[346116005,1734713432640,-500.0,0.00021917,4]
[346116006,1734713432650,-500.0,0.00021917,4]
[346116007,1734713432659,-500.0,0.00021917,4]
[346116008,1734713432668,-500.0,0.00021917,4]
[346116009,1734713432677,-305.7489,0.00022091,2]
[346116010,1734713432687,-500.0,0.0002216,2]
[346116011,1734713432696,-259.40051053,0.00022191,4]
[346116012,1734713432705,-545.94,0.00022191,2]
[346116013,1734713432714,-604.00814411,0.00022191,4]
[346116014,1734713432723,-500.0,0.00022191,4]
[346116015,1734713432736,-500.0,0.00022191,4]
[346116016,1734713432746,-500.0,0.00022191,4]
[346116017,1734713432756,-500.0,0.00022191,4]
[346116018,1734713432766,-3000.0,0.0002224,2]
[346116019,1734713432776,-587.0,0.00022355,2]
[346116020,1734713432786,-387.83,0.00022465,4]
[346116021,1734713432796,-500.0,0.00022465,4]
[346116022,1734713432805,-500.0,0.00022465,4]
[346116023,1734713432815,-500.0,0.00022465,4]
[346116024,1734713432824,-436.73,0.000225,2]
[346116025,1734713432834,-2000.0,0.00022536,2]
[346116026,1734713432844,-200.0,0.00022536,2]
[346116027,1734713432855,-200.0,0.00022536,2]
[346116028,1734713432864,-200.0,0.00022536,2]
[346116029,1734713432874,-194.55588691,0.00022638,2]
[346116030,1734713432883,-24077.311,0.00022638,2]
[346116031,1734713432892,-2500.0,0.00022661,2]
[346116032,1734713432901,-500.0,0.00022737,4]
[346116033,1734713432920,-500.0,0.00022737,4]
[346116034,1734713432931,-500.0,0.00022737,4]
[346116035,1734713432941,-500.0,0.00022737,4]
[346116036,1734713432951,-500.0,0.00022737,4]
[346116037,1734713432961,-505.71205698,0.00022737,4]
[346116038,1734713432970,-403.21855084,0.00022737,4]
[346116039,1734713432979,-500.0,0.00022737,4]
[346116040,1734713432990,-500.0,0.00022737,4]
[346116041,1734713433000,-500.0,0.00022737,4]
[346116042,1734713433010,-500.0,0.00022737,4]
[346116043,1734713433020,-500.0,0.00022737,4]
[346116044,1734713433030,-500.0,0.00022737,2]
[346116045,1734713433040,-500.0,0.00022737,4]
[346116046,1734713433051,-500.0,0.00022737,4]
[346116047,1734713433061,-500.0,0.00022737,4]
[346116048,1734713433071,-500.0,0.00022737,4]
[346116049,1734713433080,-500.0,0.00022738,4]
[346116050,1734713433091,-500.0,0.00022738,4]
[346116051,1734713433101,-516.9864772,0.00022738,4]
[346116052,1734713433111,-500.0,0.00022738,4]
[346116053,1734713433120,-273.09711546,0.00022738,4]
[346116054,1734713433130,-500.0,0.00022738,4]
[346116055,1734713433140,-281.94319832,0.00022738,4]
[346116056,1734713433150,-500.0,0.00022738,4]
[346116057,1734713433160,-500.0,0.00022738,4]
[346116058,1734713433171,-336.66587108,0.00022738,4]
[346116059,1734713433181,-500.0,0.00022738,4]
[346116060,1734713433191,-500.0,0.00022738,4]
[346116061,1734713433201,-500.0,0.00022738,4]
[346116062,1734713433211,-500.0,0.00022738,4]
[346116063,1734713433221,-500.0,0.00022738,4]
[346116064,1734713433233,-500.13545945,0.00022738,4]
[346116065,1734713433243,-500.0,0.00022738,4]
[346116066,1734713433253,-332.21557557,0.00022738,2]
[346116067,1734713433263,-500.0,0.00022738,4]
[346116068,1734713433274,-500.0,0.00022738,4]
[346116069,1734713433283,-500.0,0.00022738,4]
[346116070,1734713433293,-500.0,0.00022738,4]
[346116071,1734713433303,-500.0,0.00022738,4]
[346116072,1734713433313,-500.0,0.00022738,4]
[346116073,1734713433322,-500.0,0.00022738,4]
[346116074,1734713433333,-500.0,0.00022738,4]
[346116075,1734713433342,-697.67,0.00022738,4]
[346116076,1734713433352,-622.43,0.00022738,4]
[346116077,1734713433361,-500.0,0.00022738,4]
[346116078,1734713433371,-500.0,0.00022738,4]
[346116079,1734713433380,-481.28714041,0.00022738,4]
[346116080,1734713433390,-500.0,0.00022738,4]
[346116081,1734713433399,-500.0,0.00022738,4]
[346116082,1734713433410,-500.0,0.00022738,4]
[346116083,1734713433420,-795.43,0.00022738,4]
[346116084,1734713433431,-500.0,0.00022738,4]
[346116085,1734713433441,-500.0,0.00022738,4]
[346116086,1734713433451,-500.0,0.00022738,4]
[346116087,1734713433460,-500.0,0.00022738,4]
[346116088,1734713433470,-753.37,0.00022738,4]
[346116089,1734713433480,-522.78,0.00022738,4]
[346116090,1734713433492,-500.0,0.00022738,4]
[346116091,1734713433502,-526.1,0.00022738,4]
[346116092,1734713433513,-955.84,0.00022738,4]
[346116093,1734713433523,-500.0,0.00022738,4]
[346116094,1734713433533,-500.0,0.00022738,4]
[346116095,1734713433543,-500.0,0.00022738,4]
[346116096,1734713433552,-500.0,0.00022738,4]
[346116097,1734713433562,-1812.5,0.00022738,4]
[346116098,1734713433572,-500.0,0.00022738,4]
[346116099,1734713433581,-500.0,0.00022739,4]
[346116100,1734713433591,-500.0,0.00022739,4]
[346116101,1734713433601,-1810.77848121,0.00022761,2]
[346116102,1734713433611,-200.0,0.00022761,2]
[346116103,1734713433620,-200.0,0.00022761,2]
[346116104,1734713433630,-200.0,0.00022761,2]
[346116105,1734713433641,-194.55588685,0.00022778,2]
[346116106,1734713433650,-526.153,0.000228,2]
[346116107,1734713433660,-2889.678,0.00022808,2]
[346116108,1734713433671,-175.658,0.00022808,2]
[346116109,1734713433682,-397.77,0.00022824,2]
[346116110,1734713433692,-150.0,0.00022824,2]
[346116111,1734713433702,-415.85214219,0.000229,2]
[346116112,1734713433711,-3293.143,0.00022913,2]
[346116113,1734713433720,-656.6499,0.00022913,2]
[346116114,1734713433730,-194.55588685,0.00022918,2]
[346116115,1734713433742,-200.0,0.00022989,2]
[346116116,1734713433752,-151.24,0.0002299,2]
[346116117,1734713433762,-175.12240997,0.00022999,2]
[346116118,1734713433771,-500.0,0.00022999,4]
[346116119,1734713433782,-500.0,0.00022999,4]
[346116120,1734713433792,-500.0,0.00022999,4]
[346116121,1734713433801,-500.0,0.00022999,4]
[346116122,1734713433811,-500.0,0.00022999,4]
[346116123,1734713433821,-500.0,0.00022999,4]
[346116124,1734713433836,-500.0,0.00022999,4]
[346116125,1734713433846,-500.0,0.00022999,4]
[346116126,1734713433855,-500.0,0.00022999,4]
[346116127,1734713433865,-1753.68,0.00022999,4]
[346116128,1734713433876,-500.0,0.00022999,4]
[346116129,1734713433886,-500.0,0.00022999,4]
[346116130,1734713433896,-500.0,0.00022999,4]
[346116131,1734713433905,-500.0,0.00022999,4]
[346116132,1734713433914,-500.0,0.00022999,4]
[346116133,1734713433925,-500.0,0.00022999,4]
[346116134,1734713433934,-500.0,0.00022999,4]
[346116135,1734713433944,-500.0,0.00022999,4]
[346116136,1734713433953,-156.91373,0.00022999,4]
[346116137,1734713433963,-500.0,0.00022999,4]
[346116138,1734713433972,-564.02542031,0.00022999,4]
[346116139,1734713433984,-500.0,0.00022999,4]
[346116140,1734713433993,-700.0,0.00023,2]
[346116141,1734713434003,-425186.70488214,0.00023,2]
[346116142,1734713434013,-1271.63928943,0.00023,2]
[346116143,1734713434022,-745.8,0.00023005,2]
[346116144,1734713434031,-500.0,0.00023011,4]
[346116145,1734713434040,-500.0,0.00023011,4]
[346116146,1734713434050,-500.0,0.00023011,4]
[346116147,1734713434059,-554.49943556,0.00023011,4]
[346116148,1734713434068,-500.0,0.00023011,4]
[346116149,1734713434079,-154.608058,0.00023011,4]
[346116150,1734713434089,-500.0,0.00023011,4]
[346116151,1734713434099,-500.0,0.00023011,4]
[346116152,1734713434110,-529.94,0.00023011,4]
[346116153,1734713434119,-500.0,0.00023011,4]
[346116154,1734713434129,-1807.42,0.00023011,4]
[346116155,1734713434139,-574.88,0.00023011,4]
[346116156,1734713434148,-163.69315854,0.00023011,4]
[346116157,1734713434158,-1933.82,0.00023011,4]
[346116158,1734713434167,-1116.87,0.00023011,4]
[346116159,1734713434177,-500.0,0.00023011,4]
[346116160,1734713434187,-723.98,0.00023011,4]
[346116161,1734713434197,-500.0,0.00023011,4]
[346116162,1734713434207,-500.0,0.00023011,4]
[346116163,1734713434216,-500.0,0.00023011,4]
[346116164,1734713434226,-500.0,0.00023011,4]
[346116165,1734713434238,-500.0,0.00023011,4]
[346116166,1734713434248,-500.0,0.00023011,4]
[346116167,1734713434258,-500.0,0.00023011,4]
[346116168,1734713434268,-500.0,0.00023011,4]
[346116169,1734713434278,-258.99567349,0.00023011,4]
[346116170,1734713434287,-500.0,0.00023011,4]
[346116171,1734713434297,-578.58,0.00023011,4]
[346116172,1734713434306,-500.0,0.00023012,4]
[346116173,1734713434316,-500.0,0.00023012,4]
[346116174,1734713434326,-474.38,0.00023012,4]
[346116175,1734713434335,-500.0,0.00023012,4]
[346116176,1734713434345,-500.0,0.00023012,4]
[346116177,1734713434355,-500.0,0.00023012,4]
[346116178,1734713434365,-381.98935014,0.00023012,4]
[346116179,1734713434379,-500.0,0.00023012,4]
[346116180,1734713434393,-500.0,0.00023012,4]
[346116181,1734713434409,-500.0,0.00023012,4]
[346116182,1734713434422,-387.38481745,0.00023012,4]
[346116183,1734713434438,-500.0,0.00023012,4]
[346116184,1734713434450,-500.0,0.00023012,4]
[346116185,1734713434462,-500.0,0.00023012,4]
[346116186,1734713434474,-500.0,0.00023012,4]
[346116187,1734713434487,-500.0,0.00023012,4]
[346116188,1734713434499,-500.0,0.00023012,4]
[346116189,1734713434512,-500.0,0.00023012,4]
[346116190,1734713434525,-500.0,0.00023012,4]
[346116191,1734713434537,-500.0,0.00023012,4]
[346116192,1734713434549,-500.0,0.00023012,4]
[346116193,1734713434561,-697.67,0.00023012,4]
[346116194,1734713434572,-622.43,0.00023012,4]
[346116195,1734713434584,-500.0,0.00023012,4]
[346116196,1734713434596,-500.0,0.00023012,4]
[346116197,1734713434608,-329.9951848,0.00023012,4]
[346116198,1734713434620,-500.0,0.00023012,4]
[346116199,1734713434633,-500.0,0.00023012,4]
[346116200,1734713434645,-795.43,0.00023012,4]
[346116201,1734713434658,-500.0,0.00023012,4]
[346116202,1734713434669,-500.0,0.00023012,4]
[346116203,1734713434680,-500.0,0.00023012,4]
[346116204,1734713434690,-500.0,0.00023012,4]
[346116205,1734713434701,-753.37,0.00023012,4]
[346116206,1734713434712,-522.78,0.00023012,4]
[346116207,1734713434724,-500.0,0.00023012,4]
[346116208,1734713434737,-526.1,0.00023012,4]
[346116209,1734713434749,-955.84,0.00023012,4]
[346116210,1734713434760,-500.0,0.00023012,4]
[346116211,1734713434772,-500.0,0.00023012,4]
[346116212,1734713434784,-500.0,0.00023012,4]
[346116213,1734713434796,-500.0,0.00023012,4]
[346116214,1734713434808,-1812.5,0.00023012,4]
[346116215,1734713434820,-500.0,0.00023012,4]
[346116216,1734713434834,-500.0,0.00023013,4]
[346116217,1734713434848,-500.0,0.00023013,4]
[346116218,1734713434861,-215.0,0.00023014,2]
[346116219,1734713434873,-999.3,0.0002303,2]
[346116220,1734713434886,-194.55588685,0.00023059,2]
[346116221,1734713434899,-5000.0,0.00023186,2]
[346116222,1734713434911,-194.55588685,0.00023199,2]
[346116223,1734713434923,-200.0,0.00023219,2]
[346116224,1734713434936,-801.49,0.00023223,2]
[346116225,1734713434947,-500.0,0.00023256,2]
[346116226,1734713434958,-500.0,0.00023273,4]
[346116227,1734713434970,-500.0,0.00023273,4]
[346116228,1734713434984,-500.0,0.00023273,4]
[346116229,1734713434996,-500.0,0.00023273,4]
[346116230,1734713435008,-500.0,0.00023273,4]
[346116231,1734713435019,-500.0,0.00023273,4]
[346116232,1734713435030,-500.0,0.00023273,4]
[346116233,1734713435042,-500.0,0.00023273,4]
[346116234,1734713435052,-500.0,0.00023273,4]
[346116235,1734713435064,-1753.68,0.00023273,4]
[346116236,1734713435076,-500.0,0.00023273,4]
[346116237,1734713435089,-500.0,0.00023273,4]
[346116238,1734713435103,-500.0,0.00023273,4]
[346116239,1734713435115,-500.0,0.00023273,4]
[346116240,1734713435127,-500.0,0.00023273,4]
[346116241,1734713435139,-500.0,0.00023273,4]
[346116242,1734713435150,-500.0,0.00023273,4]
[346116243,1734713435161,-500.0,0.00023273,4]
[346116244,1734713435171,-500.0,0.00023273,4]
[346116245,1734713435181,-500.0,0.00023273,4]
[346116246,1734713435193,-168.75,0.00023278,2]
[346116247,1734713435203,-589.2,0.00023285,4]
[346116248,1734713435214,-500.0,0.00023285,4]
[346116249,1734713435227,-622.59,0.00023285,4]
[346116250,1734713435240,-164.40287247,0.00023285,4]
[346116251,1734713435252,-154.608058,0.00023285,4]
[346116252,1734713435262,-500.0,0.00023285,4]
[346116253,1734713435272,-500.0,0.00023285,4]
[346116254,1734713435283,-529.94,0.00023285,4]
[346116255,1734713435293,-500.0,0.00023285,4]
[346116256,1734713435304,-1807.42,0.00023285,4]
[346116257,1734713435314,-574.88,0.00023285,4]
[346116258,1734713435326,-1933.82,0.00023285,4]
[346116259,1734713435336,-1116.87,0.00023285,4]
[346116260,1734713435347,-500.0,0.00023285,4]
[346116261,1734713435360,-723.98,0.00023285,4]
[346116262,1734713435373,-500.0,0.00023285,4]
[346116263,1734713435384,-500.0,0.00023285,4]
[346116264,1734713435396,-500.0,0.00023285,4]
[346116265,1734713435407,-500.0,0.00023285,4]
[346116266,1734713435418,-500.0,0.00023285,4]
[346116267,1734713435429,-500.0,0.00023285,4]
[346116268,1734713435439,-500.0,0.00023285,4]
[346116269,1734713435449,-500.0,0.00023285,4]
[346116270,1734713435460,-578.58,0.00023285,4]
[346116271,1734713435470,-500.0,0.00023286,4]
[346116272,1734713435480,-500.0,0.00023286,4]
[346116273,1734713435492,-500.0,0.00023286,4]
[346116274,1734713435503,-500.0,0.00023286,4]
[346116275,1734713435514,-500.0,0.00023286,4]
[346116276,1734713435525,-500.0,0.00023286,4]
[346116277,1734713435536,-500.0,0.00023286,4]
[346116278,1734713435546,-500.0,0.00023286,4]
[346116279,1734713435557,-500.0,0.00023286,4]
[346116280,1734713435567,-500.0,0.00023286,4]
[346116281,1734713435578,-500.0,0.00023286,4]
[346116282,1734713435588,-500.0,0.00023286,4]
[346116283,1734713435599,-500.0,0.00023286,4]
[346116284,1734713435610,-500.0,0.00023286,4]
[346116285,1734713435620,-500.0,0.00023286,4]
[346116286,1734713435631,-500.0,0.00023286,4]
[346116287,1734713435644,-500.0,0.00023286,4]
[346116288,1734713435656,-500.0,0.00023286,4]
[346116289,1734713435667,-697.67,0.00023286,4]
[346116290,1734713435679,-622.43,0.00023286,4]
[346116291,1734713435694,-500.0,0.00023286,4]
[346116292,1734713435706,-597.86330532,0.00023286,4]
[346116293,1734713435717,-500.0,0.00023286,4]
[346116294,1734713435736,-500.0,0.00023286,4]
[346116295,1734713435749,-795.43,0.00023286,4]
[346116296,1734713435763,-500.0,0.00023286,4]
[346116297,1734713435777,-500.0,0.00023286,4]
[346116298,1734713435789,-500.0,0.00023286,4]